bitfinex/quotes_SOLUSD_20250305
["timestamp","ask_amount","ask_price","bid_price","bid_amount"]
[1741191067542,100.07613357,142.13,142.1,0.033]
[1741191067741,101.92394822,142.13,142.1,0.033]
[1741191067951,108.95974822,142.13,142.1,0.033]
[1741191068456,107.11193357,142.13,142.1,0.033]
[1741191068856,26.11193357,142.13,142.1,0.033]
[1741191069279,0.42648471,142.13,142.1,0.033]
[1741191069780,7.46228471,142.13,142.1,0.033]
[1741191070288,7.0358,142.13,142.1,0.033]
[1741191070497,0.14216157,142.13,142.1,0.033]
[1741191070700,0.28432314,142.13,142.1,0.033]
[1741191071072,81.0,142.12,142.1,0.033]
[1741191071271,18.64964886,142.11,142.1,0.033]
[1741191071771,18.933972,142.11,142.1,0.033]
[1741191072073,25.970772,142.11,142.1,0.033]
[1741191072698,18.933972,142.09,142.08,0.033]
[1741191072998,18.933972,142.09,142.07,0.033]
[1741191072999,99.933972,142.08,142.03,0.033]
[1741191073202,1.8482545,142.09,142.03,0.033]
[1741191073203,0.28432314,142.06,142.03,0.033]
[1741191073901,0.28432314,142.04,142.03,0.033]
[1741191074072,18.933972,142.04,142.03,0.033]
[1741191074478,0.28432314,142.04,142.03,0.033]
[1741191075301,0.28432314,142.03,142.0,0.033]
[1741191075506,18.933972,142.01,142.0,0.033]
[1741191075873,7.32602314,142.01,142.0,0.033]
[1741191076399,14.87367049,142.01,142.0,0.033]
[1741191076897,7.32602314,142.01,142.0,0.033]
[1741191077098,18.64964886,142.03,142.0,0.033]
[1741191077475,25.69044886,142.03,142.0,0.033]
[1741191077675,18.64964886,142.03,142.0,0.033]
[1741191077903,15.92872441,142.04,142.0,0.033]
[1741191077904,15.92872441,142.04,142.01,13.2271]
[1741191078078,15.92872441,142.04,142.01,318.1855]
[1741191078396,18.64964886,142.03,142.01,318.1855]
[1741191078598,18.64964886,142.03,142.01,6.1855]
[1741191079400,0.42648471,142.02,142.0,0.033]
[1741191079996,7.46818471,142.01,142.0,0.033]
[1741191081078,19.07613357,142.0,141.93,6.3065]
[1741191081279,19.07613357,141.98,141.91,1.6213]
[1741191081492,19.07613357,141.98,141.91,313.6213]
[1741191081902,18.79181043,141.96,141.91,1.6213]
[1741191082101,0.14216157,141.94,141.91,1.6213]
[1741191082304,0.28432314,141.95,141.91,1.6213]
[1741191083015,18.64964886,141.96,141.91,1.6213]
[1741191083199,0.14216157,141.97,141.91,8.6678]
[1741191083399,7.0412,142.02,141.92,30.02691629]
[1741191083710,18.933972,142.0,141.92,181.3637]
[1741191083913,18.79181043,142.0,141.92,211.39061629]
[1741191084089,7.18456157,142.0,141.93,7.0457]
[1741191084290,0.14216157,142.0,141.93,37.07261629]
[1741191084595,18.64964886,141.99,141.93,7.0457]
[1741191084800,18.64964886,141.99,141.93,44.4637]
[1741191085004,0.28432314,141.98,141.93,356.4637]
[1741191085208,0.28432314,141.98,141.93,44.4637]
[1741191085409,0.28432314,141.98,141.91,1.6213]
[1741191085724,0.14216157,141.95,141.85,44.4967]
[1741191085896,0.14216157,141.93,141.85,44.4967]
[1741191086294,0.14216157,141.9,141.85,0.033]
[1741191086690,0.14216157,141.9,141.85,7.0826]
[1741191086888,0.14216157,141.9,141.85,0.033]
[1741191087086,0.14216157,141.88,141.85,0.033]
[1741191087815,18.79181043,141.86,141.85,0.033]
[1741191088427,0.28432314,141.91,141.85,0.033]
[1741191088927,0.14216157,141.89,141.85,0.033]
[1741191089146,24.19560544,141.93,141.86,7.9302]
[1741191089417,17.14990544,141.93,141.89,30.02691629]
[1741191089715,17.14990544,141.93,141.89,74.49061629]
[1741191089926,18.64964886,141.92,141.89,44.4637]
[1741191090436,7.0456,141.94,141.89,44.4637]
[1741191090650,0.14216157,141.96,141.89,74.49061629]
[1741191090946,18.933972,141.96,141.89,81.53791629]
[1741191091130,116.71451349,142.0,141.9,30.02691629]
[1741191091311,25.15011349,142.0,141.93,30.02691629]
[1741191091511,25.15011349,142.0,141.94,7.8272]
[1741191091712,18.10781349,142.0,141.95,312.0]
[1741191091915,18.64964886,142.0,141.95,312.0]
[1741191092127,18.64964886,142.02,141.95,386.49061629]
[1741191092324,86.6457175,142.08,141.96,8.52313618]
[1741191092536,81.0,142.08,141.98,30.02691629]
[1741191092744,18.933972,142.06,141.97,30.02691629]
[1741191092946,18.933972,142.04,141.94,52.2909]
[1741191093123,0.28432314,142.02,141.94,52.2909]
[1741191094044,18.933972,142.0,141.94,52.2909]
[1741191094348,18.933972,141.98,141.94,7.8272]
[1741191095222,18.933972,141.98,141.9,44.4637]
[1741191095418,18.933972,141.98,141.9,356.4637]
[1741191095725,0.14216157,141.97,141.9,363.5108]
[1741191095930,18.64964886,141.98,141.91,30.02691629]
[1741191096126,7.0421,142.01,141.93,30.02691629]
[1741191096331,7.0417,142.01,141.93,74.49061629]
[1741191096630,35.03875509,142.0,141.93,74.49061629]
[1741191096827,16.38910623,142.0,141.96,30.02691629]
[1741191097031,16.38910623,142.0,141.96,181.3637]
[1741191097539,16.38910623,142.0,141.96,44.4637]
[1741191098446,0.14216157,142.01,141.96,44.4637]
[1741191098648,7.18406157,142.01,141.96,44.4637]
[1741191098820,18.64964886,142.0,141.96,44.4637]
[1741191099021,18.64964886,142.0,141.96,356.4637]
[1741191099234,16.11056786,142.01,141.96,393.53471629]
[1741191099517,16.11056786,142.01,142.0,30.02691629]
[1741191099745,16.11056786,142.01,142.0,74.49061629]
[1741191100048,14.44396786,142.01,142.0,212.86900391]
[1741191100223,0.03,142.03,142.01,0.42648471]
[1741191100542,17.588,142.15,142.02,38.97256893]
[1741191100543,7.0353,142.14,142.02,38.97256893]
[1741191100751,7.0353,142.14,142.06,30.02691629]
[1741191101037,0.14216157,142.12,142.06,181.3637]
[1741191101248,18.64964886,142.13,142.06,181.3637]
[1741191101430,0.28432314,142.12,142.06,181.3637]
[1741191102631,18.64964886,142.1,142.06,493.3637]
[1741191102951,0.14216157,142.09,142.06,356.4637]
[1741191103151,0.42648471,142.09,142.06,312.0]
[1741191103650,7.0368,142.11,142.06,30.02691629]
[1741191103828,7.0368,142.11,142.05,30.02691629]
[1741191104023,0.42648471,142.09,142.03,80.9]
[1741191104640,18.64964886,142.07,142.03,80.9]
[1741191105133,0.14216157,142.06,142.01,80.9]
[1741191105339,0.42648471,142.06,141.98,225.8361]
[1741191105548,0.42648471,142.06,141.98,88.9361]
[1741191105760,0.42648471,142.06,141.98,225.8361]
[1741191106459,18.64964886,142.07,142.01,30.02691629]
[1741191106629,17.593,142.11,142.05,312.0]
[1741191106834,18.933972,142.1,142.05,312.0]
[1741191107139,0.03,142.06,142.05,312.0]
[1741191107336,0.03,142.06,142.02,80.9]
[1741191107542,0.03,142.06,142.0,80.9]
[1741191108161,18.963972,142.06,141.98,87.3207]
[1741191108342,18.963972,142.06,141.98,80.9]
[1741191108660,18.933972,142.01,141.95,80.9]
[1741191108855,20.78301301,142.01,141.93,21.174519]
[1741191109051,0.28432314,141.98,141.93,21.174519]
[1741191109362,0.28432314,141.96,141.93,21.174519]
[1741191109739,0.14216157,141.95,141.93,21.174519]
[1741191110553,18.79181043,141.94,141.93,21.174519]
[1741191110859,25.979172,141.94,141.93,21.174519]
[1741191111158,25.83701043,141.94,141.86,217.8]
[1741191111460,0.42648471,141.93,141.86,217.8]
[1741191112845,82.84997936,141.97,141.86,266.73877817]
[1741191113048,88.47068471,141.96,141.86,266.73877817]
[1741191113368,0.28432314,141.94,141.86,266.73877817]
[1741191113663,18.64964886,141.95,141.86,273.78767817]
[1741191113858,18.64964886,141.95,141.88,48.93877817]
[1741191114062,18.64964886,141.95,141.89,48.93877817]
[1741191114266,18.64964886,141.95,141.91,312.0]
[1741191114476,7.0432,141.98,141.91,312.0]
[1741191114658,7.0432,141.98,141.91,80.9]
[1741191114851,18.64964886,141.97,141.91,80.9]
[1741191116058,7.0422,142.0,141.92,48.93877817]
[1741191116259,7.0422,142.0,141.93,48.93877817]
[1741191116469,7.0407,142.03,141.94,48.93877817]
[1741191116684,24.6426,142.03,141.94,266.73877817]
[1741191116978,0.28432314,142.02,141.94,217.8]
[1741191117271,18.933972,142.0,141.91,80.9]
[1741191117442,18.933972,142.0,141.91,87.9466]
[1741191117647,18.933972,142.0,141.93,312.0]
[1741191118062,0.28432314,141.97,141.93,312.0]
[1741191118265,0.28432314,141.97,141.89,80.9]
[1741191118469,18.64964886,141.96,141.87,82.5629]
[1741191118767,18.64964886,141.96,141.89,48.93877817]
[1741191118948,5.3710543,142.0,141.87,108.71297974]
[1741191118949,7.0432,141.98,141.91,48.93877817]
[1741191119150,25.69284886,141.98,141.9,48.93877817]
[1741191119339,43.30094886,141.98,141.89,48.93877817]
[1741191119545,18.933972,141.97,141.87,80.9]
[1741191119967,18.933972,141.97,141.87,136.88737817]
[1741191120514,7.0432,141.98,141.9,48.93877817]
[1741191120682,18.64964886,141.97,141.88,48.93877817]
[1741191120881,0.28432314,141.96,141.88,48.93877817]
[1741191121082,18.64964886,141.94,141.92,312.0]
[1741191122598,7.0447,141.95,141.92,312.0]
[1741191122800,18.64964886,141.94,141.92,312.0]
[1741191123181,0.28432314,141.96,141.92,312.0]
[1741191123182,25.69534886,141.93,141.92,312.0]
[1741191123377,18.64964886,141.93,141.92,312.0]
[1741191123693,18.64964886,141.92,141.89,80.9]
[1741191123887,7.0454,141.94,141.89,80.9]
[1741191124091,18.933972,141.93,141.89,80.9]
[1741191124298,18.64964886,141.93,141.87,80.9]
[1741191124497,88.0447,141.95,141.88,48.93877817]
[1741191124703,7.0447,141.95,141.89,48.93877817]
[1741191124901,7.0447,141.95,141.9,48.93877817]
[1741191125100,7.18536157,141.98,141.9,136.88557817]
[1741191125423,7.18536157,141.98,141.9,80.9]
[1741191125424,0.14216157,141.96,141.9,80.9]
[1741191125805,0.28432314,141.94,141.87,80.9]
[1741191126318,18.933972,141.92,141.85,6.6384]
[1741191126521,18.933972,141.92,141.85,318.6384]
[1741191127018,18.933972,141.92,141.85,392.933]
[1741191127019,20.7840387,141.92,141.85,392.933]
[1741191127225,0.28432314,141.89,141.85,392.933]
[1741191127521,0.28432314,141.89,141.85,312.033]
[1741191128425,0.28432314,141.87,141.85,0.033]
[1741191128723,0.28432314,141.87,141.79,217.833]
[1741191128897,18.933972,141.85,141.79,80.933]
[1741191129223,1.8510431,141.86,141.74,0.0001]
[1741191129224,2.462,141.81,141.74,0.0001]
[1741191129401,0.28432314,141.76,141.67,18.53688691]
[1741191129603,18.933972,141.74,141.67,18.53688691]
[1741191129917,0.28432314,141.72,141.67,18.53688691]
[1741191130219,18.933972,141.72,141.67,18.53688691]
[1741191130402,0.28432314,141.69,141.67,18.53688691]
[1741191130718,2.13750044,141.69,141.66,40.09972944]
[1741191131024,2.13750044,141.69,141.57,43.76090618]
[1741191131025,0.28432314,141.67,141.57,43.76090618]
[1741191131205,25.993572,141.65,141.57,43.76090618]
[1741191131395,18.933972,141.65,141.57,355.76090618]
[1741191131996,0.28432314,141.62,141.57,355.76090618]
[1741191132527,0.42648471,141.63,141.57,43.76090618]
[1741191132713,20.93029251,141.63,141.57,43.76090618]
[1741191133024,0.42648471,141.61,141.55,2.38662637]
[1741191133224,19.07613357,141.59,141.55,2.38662637]
[1741191133593,19.07613357,141.57,141.55,2.38662637]
[1741191134021,0.42648471,141.57,141.55,2.38662637]
[1741191134222,19.22712563,141.56,141.55,2.38662637]
[1741191134727,37.87677449,141.56,141.55,2.38662637]
[1741191134931,38.3032592,141.56,141.55,2.38662637]
[1741191135232,19.07613357,141.55,141.42,136.9]
[1741191135407,19.07613357,141.55,141.47,312.0]
[1741191135610,0.42648471,141.54,141.47,312.0]
[1741191135806,0.42648471,141.54,141.45,48.93877817]
[1741191136225,18.90228781,141.54,141.48,48.93877817]
[1741191136524,18.90228781,141.54,141.47,48.93877817]
[1741191136525,14.47252791,141.53,141.47,48.93877817]
[1741191136706,14.47252791,141.53,141.49,312.0]
[1741191136906,33.12217677,141.53,141.49,312.0]
[1741191137110,18.64964886,141.52,141.49,312.0]
[1741191137309,108.02657538,141.5,141.49,312.0]
[1741191137530,108.02657538,141.5,141.49,185.98093974]
[1741191137717,108.02657538,141.5,141.49,185.83877817]
[1741191138031,108.02657538,141.5,141.49,71.64170971]
[1741191138216,108.02657538,141.5,141.49,170.81438716]
[1741191138418,108.02657538,141.5,141.49,114.38152428]
[1741191138607,108.02657538,141.5,141.47,169.22687817]
[1741191139305,108.02657538,141.5,141.49,48.93877817]
[1741191139508,108.02657538,141.5,141.47,114.2]
[1741191139723,108.02657538,141.5,141.48,48.93877817]
[1741191139926,108.02657538,141.5,141.49,48.93877817]
[1741191140436,108.02657538,141.5,141.49,312.18152428]
[1741191140611,108.02657538,141.5,141.49,312.0]
[1741191141723,108.02657538,141.5,141.45,114.2]
[1741191142021,108.02657538,141.5,141.45,49.12030245]
[1741191142225,108.02657538,141.5,141.46,48.93877817]
[1741191142607,108.02657538,141.5,141.45,49.12030245]
[1741191142809,108.02657538,141.5,141.46,48.93877817]
[1741191143302,108.02657538,141.5,141.46,56.00777817]
[1741191143504,108.02657538,141.5,141.48,48.93877817]
[1741191143703,108.02657538,141.5,141.48,163.32030245]
[1741191143925,108.02657538,141.5,141.48,114.38152428]
[1741191144824,108.02657538,141.5,141.48,426.38152428]
[1741191145813,108.02657538,141.5,141.48,312.0]
[1741191146230,108.02657538,141.5,141.48,56.00677817]
[1741191146524,108.02657538,141.5,141.48,7.24942428]
[1741191146736,108.02657538,141.5,141.48,56.18820245]
[1741191147035,108.02657538,141.5,141.43,0.18152428]
[1741191147212,108.02657538,141.5,141.45,48.93877817]
[1741191147530,108.02657538,141.5,141.47,48.93877817]
[1741191147833,108.02657538,141.5,141.48,48.93877817]
[1741191148234,108.02657538,141.5,141.47,114.38152428]
[1741191148408,108.02657538,141.5,141.44,7.07]
[1741191148612,108.02657538,141.5,141.47,48.93877817]
[1741191148824,108.02657538,141.5,141.47,133.59981942]
[1741191149027,108.02657538,141.5,141.49,48.93877817]
[1741191149232,108.02657538,141.5,141.49,475.46246402]
[1741191149421,108.02657538,141.5,141.49,482.95654873]
[1741191149627,71.93007538,141.5,141.49,482.95654873]
[1741191149920,18.64964886,141.61,141.49,501.60619759]
[1741191150116,82.01099149,141.64,141.55,48.93877817]
[1741191150316,82.01099149,141.64,141.55,0.18152428]
[1741191150523,89.07119149,141.64,141.55,0.18152428]
[1741191150835,18.64964886,141.63,141.55,0.18152428]
[1741191151139,35.89587644,141.63,141.55,0.18152428]
[1741191151458,35.89587644,141.63,141.56,7.0641]
[1741191151627,17.24622758,141.63,141.56,171.86727141]
[1741191151806,17.24622758,141.63,141.56,170.38440245]
[1741191152013,17.24622758,141.63,141.56,114.38152428]
[1741191152842,18.64964886,141.63,141.56,114.38152428]
[1741191153019,48.2417597,141.64,141.6,312.0]
[1741191153344,48.2417597,141.64,141.61,50.56343827]
[1741191153636,48.2417597,141.64,141.61,172.00608809]
[1741191153804,48.2417597,141.64,141.63,0.14216157]
[1741191154005,48.2417597,141.64,141.63,114.38152428]
[1741191154212,48.2417597,141.64,141.63,0.18152428]
[1741191154409,48.2417597,141.64,141.61,114.38152428]
[1741191154633,48.2417597,141.64,141.62,49.08093974]
[1741191155032,48.2417597,141.64,141.63,49.50742445]
[1741191155234,48.2417597,141.64,141.63,50.98950519]
[1741191155419,48.2417597,141.64,141.63,49.50742445]
[1741191155621,48.2417597,141.64,141.63,0.18152428]
[1741191156635,35.82980873,141.69,141.63,312.18152428]
[1741191157012,35.82980873,141.69,141.63,0.18152428]
[1741191157212,42.88750873,141.69,141.63,0.18152428]
[1741191157437,54.88410291,141.68,141.61,0.18152428]
[1741191157829,0.14216157,141.67,141.59,0.18152428]
[1741191158131,35.69140389,141.63,141.59,0.18152428]
[1741191158510,18.933972,141.66,141.59,0.18152428]
[1741191158727,18.64964886,141.64,141.59,0.18152428]
[1741191159040,18.64964886,141.62,141.57,0.18152428]
[1741191159336,35.2250724,141.65,141.57,114.38152428]
[1741191159644,35.2250724,141.65,141.58,1.48283151]
[1741191159813,17.6441,141.69,141.59,0.14216157]
[1741191159814,42.71294628,141.67,141.59,0.14216157]
[1741191160015,42.71294628,141.67,141.62,312.0]
[1741191160217,0.03,141.7,141.62,312.0]
[1741191160218,35.82980873,141.69,141.62,312.0]
[1741191160410,18.933972,141.68,141.62,312.0]
[1741191160616,35.65434628,141.67,141.59,163.46246402]
[1741191160838,18.64964886,141.68,141.6,50.42119658]
[1741191161754,7.0577,141.69,141.61,0.28432314]
[1741191162047,35.82980873,141.69,141.63,49.08093974]
[1741191162239,0.03,141.7,141.65,49.08093974]
[1741191162550,35.23056251,141.7,141.65,49.08093974]
[1741191162750,0.03,141.7,141.65,48.93877817]
[1741191162954,42.28786251,141.7,141.65,0.14216157]
[1741191163243,35.23056251,141.7,141.65,0.14216157]
[1741191163754,0.03,141.7,141.69,312.0]
[1741191163921,0.03,141.7,141.69,312.18152428]
[1741191164119,0.03,141.7,141.69,0.18152428]
[1741191164325,20.0,141.69,141.66,104.68152428]
[1741191164523,20.0,141.69,141.66,0.18152428]
[1741191164738,55.82980873,141.69,141.66,0.18152428]
[1741191165130,55.82980873,141.69,141.63,0.18152428]
[1741191165637,62.88790873,141.69,141.63,0.18152428]
[1741191166141,27.0581,141.69,141.63,0.18152428]
[1741191166319,20.0,141.69,141.63,0.32368585]
[1741191166515,0.03,141.7,141.64,1.62416538]
[1741191166762,0.03,141.7,141.65,0.42648471]
[1741191167056,0.03,141.7,141.69,361.50742445]
[1741191167222,35.61094444,141.78,141.69,466.18894873]
[1741191167552,42.66404444,141.78,141.71,49.08093974]
[1741191167756,42.66404444,141.78,141.71,50.56205233]
[1741191168050,42.66404444,141.78,141.71,57.61865233]
[1741191168253,24.686,141.78,141.71,106.30479844]
[1741191168439,18.64964886,141.77,141.71,0.18152428]
[1741191168634,7.0531,141.78,141.71,1.6628992]
[1741191169027,7.0531,141.78,141.71,8.7194992]
[1741191169235,7.0531,141.78,141.72,0.28432314]
[1741191169442,7.0531,141.78,141.73,1.4810515]
[1741191169767,0.03,141.79,141.73,1.4810515]
[1741191169950,0.03,141.79,141.72,104.82368585]
[1741191170331,20.0,141.78,141.73,0.28432314]
[1741191170532,0.03,141.79,141.76,0.42648471]
[1741191170764,0.03,141.79,141.78,0.14216157]
[1741191170936,0.03,141.79,141.78,49.08093974]
[1741191171264,0.03,141.79,141.77,0.14216157]
[1741191171431,0.03,141.79,141.76,106.16221507]
[1741191171630,0.03,141.79,141.77,0.28432314]
[1741191171933,0.03,141.79,141.78,50.703669]
[1741191172333,0.03,141.79,141.78,0.14216157]
[1741191172533,0.03,141.79,141.78,0.18152428]
[1741191173354,0.03,141.79,141.73,3.45590834]
[1741191173355,20.03,141.79,141.73,0.18152428]
[1741191173658,0.03,141.79,141.74,1.48117707]
[1741191173857,0.03,141.79,141.73,106.16231361]
[1741191174162,0.03,141.79,141.74,312.0]
[1741191174538,0.03,141.79,141.73,104.68152428]
[1741191174876,0.03,141.79,141.78,49.08093974]
[1741191175050,0.03,141.79,141.78,153.90462559]
[1741191175436,0.03,141.79,141.78,104.68152428]
[1741191175668,0.03,141.79,141.78,106.30432834]
[1741191175851,0.03,141.79,141.78,162.29620651]
[1741191176051,0.03,141.79,141.78,160.81556402]
[1741191176252,0.03,141.79,141.78,161.24204873]
[1741191176560,7.0468,141.91,141.79,0.56864628]
[1741191176763,7.0468,141.91,141.81,49.08093974]
[1741191176970,7.0468,141.91,141.82,1.48005665]
[1741191177174,94.453,141.93,141.84,48.93877817]
[1741191177476,7.0757,141.93,141.84,106.16142987]
[1741191177782,7.0477,141.89,141.87,312.0]
[1741191177952,7.0477,141.89,141.81,7.0516]
[1741191177953,20.0,141.86,141.81,7.23312428]
[1741191178153,20.0,141.86,141.81,0.18152428]
[1741191178453,20.0,141.86,141.81,7.23312428]
[1741191179073,0.03,141.93,141.82,49.50742445]
[1741191179369,0.03,141.93,141.85,48.93877817]
[1741191179574,0.03,141.93,141.86,1.47965937]
[1741191179772,20.0,141.92,141.86,1.47965937]
[1741191179968,19.589,141.92,141.86,7.23052428]
[1741191180282,18.64964886,141.91,141.86,0.18152428]
[1741191180448,18.64964886,141.91,141.8,6.0612]
[1741191180449,0.28432314,141.9,141.81,8.53161938]
[1741191180655,0.28432314,141.9,141.81,0.18152428]
[1741191180852,0.28432314,141.9,141.81,312.18152428]
[1741191181053,0.14216157,141.87,141.8,0.18152428]
[1741191181266,0.28432314,141.85,141.8,0.18152428]
[1741191181996,20.0,141.79,141.76,0.18152428]
[1741191182447,18.64964886,141.78,141.73,0.18152428]
[1741191182652,20.0,141.75,141.71,0.18152428]
[1741191183458,81.0,141.82,141.71,141.73513915]
[1741191183658,0.28432314,141.81,141.73,30.17853915]
[1741191183879,7.0497,141.85,141.77,30.17853915]
[1741191184059,7.0497,141.85,141.79,342.17853915]
[1741191184461,20.0,141.82,141.79,312.0]
[1741191184675,7.0497,141.85,141.78,0.14216157]
[1741191184857,7.0497,141.85,141.78,234.40798678]
[1741191185071,18.64964886,141.84,141.78,185.4]
[1741191185384,7.0497,141.85,141.78,234.40798678]
[1741191185678,7.0492,141.86,141.79,50.48842]
[1741191185884,0.28432314,141.87,141.78,234.40798678]
[1741191186057,18.933972,141.87,141.78,185.4]
[1741191186254,18.64964886,141.83,141.78,80.9]
[1741191186476,20.0,141.8,141.75,80.9]
[1741191186682,18.64964886,141.79,141.75,80.9]
[1741191186983,20.0,141.78,141.73,104.5]
[1741191187569,81.0,141.83,141.75,312.0]
[1741191187765,0.56864628,141.85,141.75,312.0]
[1741191187982,20.0,141.8,141.75,312.0]
[1741191188855,18.64964886,141.79,141.75,312.0]
[1741191189259,81.28432314,141.82,141.75,312.0]
[1741191189479,81.28432314,141.82,141.75,319.0546]
[1741191189480,81.0,141.82,141.75,319.0546]
[1741191189657,24.6755,141.84,141.75,136.96258678]
[1741191189854,24.6755,141.84,141.76,49.00798678]
[1741191190093,18.64964886,141.83,141.76,49.00798678]
[1741191190565,7.0492,141.86,141.81,49.00798678]
[1741191190758,7.0492,141.86,141.82,49.00798678]
[1741191190957,24.6662,141.9,141.82,129.90798678]
[1741191191160,24.6662,141.9,141.83,50.48807814]
[1741191191680,24.6662,141.9,141.82,80.9]
[1741191191878,18.64964886,141.87,141.82,80.9]
[1741191192059,7.33152314,141.9,141.82,80.9]
[1741191192263,7.33152314,141.9,141.82,185.4]
[1741191192264,7.0472,141.9,141.82,185.4]
[1741191192469,7.0472,141.9,141.82,234.40798678]
[1741191192686,24.6652,141.9,141.85,312.0]
[1741191192868,24.6652,141.9,141.85,392.9]
[1741191192869,20.0,141.87,141.85,392.9]
[1741191193077,24.6652,141.9,141.85,392.9]
[1741191193475,7.0472,141.9,141.85,129.90798678]
[1741191193893,7.0467,141.91,141.86,50.48776926]
[1741191194071,7.0761,141.93,141.88,49.00798678]
[1741191194275,7.0761,141.93,141.88,129.90798678]
[1741191194499,0.03,141.93,141.89,50.48746183]
[1741191194990,0.03,141.93,141.89,186.87947505]
[1741191195161,7.0757,141.93,141.89,234.40798678]
[1741191195574,7.0757,141.93,141.9,1.47935552]
[1741191195575,0.03,141.93,141.9,1.47935552]
[1741191195768,0.03,141.93,141.9,50.4873423]
[1741191195975,0.03,141.93,141.89,234.40798678]
[1741191196270,0.03,141.93,141.89,185.4]
[1741191196576,0.03,141.93,141.89,80.9]
[1741191196778,0.03,141.93,141.87,80.9]
[1741191196982,0.03,141.93,141.9,0.14216157]
[1741191197292,0.03,141.93,141.9,49.00798678]
[1741191197588,0.03,141.93,141.9,1.47933362]
[1741191197790,0.03,141.93,141.87,234.55014835]
[1741191198002,0.03,141.93,141.89,80.9]
[1741191198568,0.03,141.93,141.85,129.90798678]
[1741191198764,0.03,141.93,141.87,49.00798678]
[1741191199062,0.03,141.93,141.92,49.15014835]
[1741191199270,0.03,141.93,141.92,236.17128424]
[1741191199469,0.03,141.93,141.92,234.69230992]
[1741191199669,0.03,141.93,141.92,546.69230992]
[1741191200394,0.03,141.93,141.92,560.05573306]
[1741191200695,0.03,141.93,141.92,578.70538192]
[1741191201698,0.03,141.93,141.92,529.69739514]
[1741191201894,0.03,141.93,141.92,628.70538192]
[1741191202190,0.03,141.93,141.92,578.70538192]
[1741191203069,0.03,141.93,141.92,522.58304835]
[1741191203616,0.03,141.93,141.92,522.72520992]
[1741191203915,0.03,141.93,141.92,548.70538192]
[1741191204984,0.03,141.93,141.92,522.10538192]
[1741191205308,0.03,142.03,141.99,0.28432314]
[1741191205529,0.03,142.03,142.02,49.00798678]
[1741191205685,0.03,142.03,142.02,80.9]
[1741191206192,0.03,142.03,142.02,129.22648471]
[1741191206393,0.03,142.03,142.02,178.23447149]
[1741191207619,0.03,142.03,142.02,185.55999463]
[1741191207812,0.03,142.03,142.02,204.20964349]
[1741191207989,0.03,142.03,142.02,253.21763027]
[1741191208430,0.03,142.03,142.02,516.20964349]
[1741191208718,0.03,142.03,142.02,490.51879463]
[1741191208932,0.03,142.03,142.02,490.23447149]
[1741191209218,0.03,142.03,142.02,490.51879463]
[1741191209511,0.03,142.03,142.02,509.16844349]
[1741191209813,0.03,142.03,142.02,617.21763027]
[1741191210314,0.03,142.03,142.02,615.21763027]
[1741191210620,0.03,142.05,142.04,20.56864628]
[1741191210922,0.03,142.05,142.04,268.64575288]
[1741191211224,0.03,142.05,142.04,276.20864349]
[1741191211389,0.03,142.08,142.07,19.21829514]
[1741191211584,0.03,142.08,142.07,198.6453531]
[1741191211810,0.03,142.08,142.07,197.16844349]
[1741191212197,0.03,142.08,142.07,246.17643027]
[1741191212413,0.03,142.18,142.13,0.56864628]
[1741191212618,7.0634,142.18,142.13,177.95014835]
[1741191212913,7.0634,142.18,142.13,128.94216157]
[1741191213210,20.03,142.18,142.13,128.94216157]
[1741191213811,20.03,142.18,142.13,179.42708278]
[1741191214014,20.03,142.18,142.15,312.0]
[1741191214194,0.03,142.18,142.15,489.95014835]
[1741191214400,0.03,142.18,142.16,1.47663005]
[1741191214599,0.03,142.18,142.16,179.4267784]
[1741191214804,0.03,142.18,142.16,177.95014835]
[1741191215004,0.03,142.18,142.16,128.94216157]
[1741191215318,0.03,142.18,142.17,49.00798678]
[1741191215509,0.03,142.18,142.17,252.46703027]
[1741191216094,0.03,142.18,142.17,203.45904349]
[1741191216316,0.03,142.18,142.17,129.22648471]
[1741191216520,0.03,142.18,142.17,178.23447149]
[1741191216829,0.03,142.18,142.17,128.94216157]